[Event "Live Chess"]
[Site "Chess.com"]
[Date "2023.05.20"]
[Round "-"]
[White "BearFromUkraine"]
[Black "Chesscoach_Golichenko"]
[Result "0-1"]
[WhiteElo "1164"]
[BlackElo "2646"]
[TimeControl "300"]
[EndTime "9:53:13 PDT"]
[Termination "Chesscoach_Golichenko won by resignation"]

1. e4 {[%clk 0:04:56.1]} 1... Nf6 {[%clk 0:04:52.1]} 2. e5 {[%clk 0:04:54.7]}
2... Nd5 {[%clk 0:04:50.1]} 3. Nf3 {[%clk 0:04:51.1]} 3... d6 {[%clk 0:04:46.3]}
4. exd6 {[%clk 0:04:49.1]} 4... exd6 {[%clk 0:04:45]} 5. Bc4 {[%clk 0:04:46.8]}
5... Nb6 {[%clk 0:04:42.5]} 6. Bb3 {[%clk 0:04:45.5]} 6... Be7 {[%clk
0:04:41.9]} 7. O-O {[%clk 0:04:44.2]} 7... O-O {[%clk 0:04:40.9]} 8. d3 {[%clk
0:04:42.1]} 8... d5 {[%clk 0:04:38.6]} 9. Bf4 {[%clk 0:04:33.7]} 9... Bf6 {[%clk
0:04:32.5]} 10. c3 {[%clk 0:04:30.1]} 10... c5 {[%clk 0:04:29.9]} 11. a3 {[%clk
0:04:26.2]} 11... Nc6 {[%clk 0:04:28.2]} 12. Nbd2 {[%clk 0:04:19.8]} 12... Bf5
{[%clk 0:04:26.4]} 13. d4 {[%clk 0:04:08.2]} 13... cxd4 {[%clk 0:04:23.4]} 14.
Nxd4 {[%clk 0:03:58.3]} 14... Nxd4 {[%clk 0:04:22.2]} 15. cxd4 {[%clk
0:03:54.4]} 15... Bxd4 {[%clk 0:04:21.6]} 16. Rb1 {[%clk 0:03:35.1]} 16... Bxb1
{[%clk 0:04:19.7]} 0-1

[Event "Live Chess"]
[Site "Chess.com"]
[Date "2023.05.20"]
[Round "-"]
[White "thrithik"]
[Black "mach247"]
[Result "0-1"]
[WhiteElo "480"]
[BlackElo "1331"]
[TimeControl "300"]
[EndTime "9:53:13 PDT"]
[Termination "mach247 won by checkmate"]

1. a4 {[%clk 0:04:57.1]} 1... e5 {[%clk 0:04:58.5]} 2. Nc3 {[%clk 0:04:55.6]}
2... d5 {[%clk 0:04:57.2]} 3. Nb5 {[%clk 0:04:54]} 3... c6 {[%clk 0:04:53.9]} 4.
Nc3 {[%clk 0:04:46.4]} 4... Nf6 {[%clk 0:04:51]} 5. Ra3 {[%clk 0:04:43.9]} 5...
Bxa3 {[%clk 0:04:49.5]} 6. bxa3 {[%clk 0:04:41.9]} 6... O-O {[%clk 0:04:48.2]}
7. Bb2 {[%clk 0:04:41]} 7... Qb6 {[%clk 0:04:40.2]} 8. Nb1 {[%clk 0:04:40.5]}
8... Qxb2 {[%clk 0:04:39.2]} 9. Nc3 {[%clk 0:04:35.5]} 9... Bf5 {[%clk
0:04:36.8]} 10. d4 {[%clk 0:04:28.6]} 10... exd4 {[%clk 0:04:30.2]} 11. a5
{[%clk 0:04:26.8]} 11... dxc3 {[%clk 0:04:28.3]} 12. e3 {[%clk 0:04:16.2]} 12...
Qxc2 {[%clk 0:04:23.6]} 13. Qxc2 {[%clk 0:04:13.9]} 13... Bxc2 {[%clk
0:04:23.5]} 14. Be2 {[%clk 0:04:01.7]} 14... Bb3 {[%clk 0:04:17.3]} 15. Nf3
{[%clk 0:04:01.3]} 15... c2 {[%clk 0:04:16.7]} 16. Nd4 {[%clk 0:04:00.4]} 16...
c1=Q+ {[%clk 0:04:14.7]} 17. Bd1 {[%clk 0:03:58.2]} 17... Qxd1# {[%clk
0:04:13.1]} 0-1

[Event "Live Chess"]
[Site "Chess.com"]
[Date "2023.05.20"]
[Round "-"]
[White "SimonB4a"]
[Black "grillage"]
[Result "1-0"]
[WhiteElo "2188"]
[BlackElo "1854"]
[TimeControl "300"]
[EndTime "9:53:24 PDT"]
[Termination "SimonB4a won by resignation"]

1. d4 {[%clk 0:04:57.9]} 1... Nf6 {[%clk 0:04:56.8]} 2. c4 {[%clk 0:04:56.6]}
2... e6 {[%clk 0:04:55.4]} 3. Nf3 {[%clk 0:04:55.5]} 3... Bb4+ {[%clk 0:04:54]}
4. Bd2 {[%clk 0:04:53.6]} 4... Bxd2+ {[%clk 0:04:51.8]} 5. Nbxd2 {[%clk
0:04:52.3]} 5... d6 {[%clk 0:04:49.4]} 6. g3 {[%clk 0:04:51.2]} 6... Nbd7 {[%clk
0:04:47.6]} 7. Bg2 {[%clk 0:04:50.1]} 7... O-O {[%clk 0:04:45.8]} 8. O-O {[%clk
0:04:48.7]} 8... e5 {[%clk 0:04:44.6]} 9. e4 {[%clk 0:04:44.8]} 9... Re8 {[%clk
0:04:40.1]} 10. d5 {[%clk 0:04:41.7]} 10... a5 {[%clk 0:04:31.8]} 11. Qc2 {[%clk
0:04:40.1]} 11... Nc5 {[%clk 0:04:30.7]} 12. b3 {[%clk 0:04:37.7]} 12... b6
{[%clk 0:04:11.1]} 13. a3 {[%clk 0:04:35.8]} 13... Bd7 {[%clk 0:04:03.4]} 14.
Rfe1 {[%clk 0:04:22.8]} 14... h6 {[%clk 0:03:37.6]} 15. b4 {[%clk 0:04:21.2]}
15... axb4 {[%clk 0:03:34.5]} 16. axb4 {[%clk 0:04:19.8]} 16... Na6 {[%clk
0:03:27.7]} 17. Qc3 {[%clk 0:04:04.6]} 17... Qb8 {[%clk 0:03:13.3]} 18. Reb1
{[%clk 0:03:59.1]} 18... Qb7 {[%clk 0:03:02.3]} 19. Ne1 {[%clk 0:03:55.9]} 19...
Nb8 {[%clk 0:03:00.9]} 20. Nd3 {[%clk 0:03:53.4]} 20... Rc8 {[%clk 0:02:46.1]}
21. c5 {[%clk 0:03:40.4]} 21... dxc5 {[%clk 0:02:34.2]} 22. bxc5 {[%clk
0:03:37.8]} 22... Rxa1 {[%clk 0:02:24]} 23. Qxa1 {[%clk 0:03:28.2]} 23... Qa6
{[%clk 0:02:17.5]} 24. Qxa6 {[%clk 0:03:12.5]} 24... Nxa6 {[%clk 0:02:16.1]} 25.
c6 {[%clk 0:03:11.2]} 25... Be8 {[%clk 0:02:07.2]} 26. Nxe5 {[%clk 0:03:07]}
26... Nc5 {[%clk 0:02:03.1]} 27. Nec4 {[%clk 0:02:59]} 27... Ng4 {[%clk
0:01:56.8]} 28. h3 {[%clk 0:02:50.7]} 28... Ne5 {[%clk 0:01:55.2]} 29. Nxe5
{[%clk 0:02:48.7]} 1-0

[Event "Live Chess"]
[Site "Chess.com"]
[Date "2023.05.20"]
[Round "-"]
[White "lucaskk818"]
[Black "NAZRIZ1977"]
[Result "0-1"]
[WhiteElo "1875"]
[BlackElo "2124"]
[TimeControl "300"]
[EndTime "9:53:25 PDT"]
[Termination "NAZRIZ1977 won by resignation"]

1. d4 {[%clk 0:04:58.5]} 1... Nf6 {[%clk 0:04:59]} 2. c4 {[%clk 0:04:58.1]} 2...
c5 {[%clk 0:04:58.2]} 3. d5 {[%clk 0:04:56.4]} 3... b5 {[%clk 0:04:57.5]} 4.
cxb5 {[%clk 0:04:56.3]} 4... a6 {[%clk 0:04:56.8]} 5. bxa6 {[%clk 0:04:56.2]}
5... g6 {[%clk 0:04:55.8]} 6. Nc3 {[%clk 0:04:56.1]} 6... d6 {[%clk 0:04:55.2]}
7. e4 {[%clk 0:04:55.3]} 7... Bxa6 {[%clk 0:04:54.1]} 8. h3 {[%clk 0:04:51.9]}
8... Bg7 {[%clk 0:04:53.1]} 9. Nf3 {[%clk 0:04:49]} 9... O-O {[%clk 0:04:52]}
10. Bxa6 {[%clk 0:04:46.6]} 10... Nxa6 {[%clk 0:04:51]} 11. O-O {[%clk
0:04:46.2]} 11... Qa5 {[%clk 0:04:50.4]} 12. a3 {[%clk 0:04:37.8]} 12... Rfb8
{[%clk 0:04:47.8]} 13. Qc2 {[%clk 0:04:36.1]} 13... Ne8 {[%clk 0:04:46.6]} 14.
Bd2 {[%clk 0:04:33.2]} 14... Nec7 {[%clk 0:04:45.1]} 15. Rab1 {[%clk 0:04:16.5]}
15... Nb5 {[%clk 0:04:43.6]} 16. Nxb5 {[%clk 0:04:10.6]} 16... Qxb5 {[%clk
0:04:42.5]} 17. Bc3 {[%clk 0:04:05.8]} 17... Qb3 {[%clk 0:04:40.7]} 18. Qxb3
{[%clk 0:04:02.1]} 18... Rxb3 {[%clk 0:04:39.2]} 19. Bxg7 {[%clk 0:04:02]} 19...
Kxg7 {[%clk 0:04:38.4]} 20. Nd2 {[%clk 0:03:58.9]} 20... Rd3 {[%clk 0:04:29.7]}
21. Nc4 {[%clk 0:03:51.2]} 21... Rd4 {[%clk 0:04:28.1]} 22. Nb6 {[%clk
0:03:42.2]} 22... Rb8 {[%clk 0:04:24.3]} 23. Nd7 {[%clk 0:03:28]} 23... Rb7
{[%clk 0:04:22.7]} 24. Nxc5 {[%clk 0:03:22]} 24... Nxc5 {[%clk 0:04:21.6]} 25.
f3 {[%clk 0:03:18.1]} 25... Nb3 {[%clk 0:04:12.7]} 26. Rfd1 {[%clk 0:03:08.4]}
26... Kf6 {[%clk 0:04:10.6]} 27. Rxd4 {[%clk 0:03:05.6]} 27... Nxd4 {[%clk
0:04:09.7]} 28. b4 {[%clk 0:03:04.8]} 28... Ke5 {[%clk 0:03:57.1]} 29. Kf2
{[%clk 0:03:02.7]} 29... f5 {[%clk 0:03:54]} 30. Ke3 {[%clk 0:02:58.9]} 30...
fxe4 {[%clk 0:03:52.7]} 31. fxe4 {[%clk 0:02:58.8]} 31... Nc2+ {[%clk
0:03:50.8]} 32. Kd3 {[%clk 0:02:47.3]} 32... Nxa3 {[%clk 0:03:46.6]} 33. h4
{[%clk 0:02:38]} 33... Nb5 {[%clk 0:03:41.5]} 34. h5 {[%clk 0:02:36.7]} 34...
Rc7 {[%clk 0:03:39.4]} 35. hxg6 {[%clk 0:02:29.8]} 35... hxg6 {[%clk 0:03:38.3]}
36. Rb3 {[%clk 0:02:25.8]} 36... Rc1 {[%clk 0:03:28.5]} 37. g3 {[%clk
0:02:19.9]} 37... g5 {[%clk 0:03:18.8]} 38. Kd2 {[%clk 0:02:19.2]} 38... Rc4
{[%clk 0:03:13.6]} 39. Kd3 {[%clk 0:02:14.2]} 0-1

[Event "Live Chess"]
[Site "Chess.com"]
[Date "2023.05.20"]
[Round "-"]
[White "Jeffaroow"]
[Black "apl_trainer"]
[Result "0-1"]
[WhiteElo "451"]
[BlackElo "1569"]
[TimeControl "300"]
[EndTime "9:53:29 PDT"]
[Termination "apl_trainer won by resignation"]

1. e4 {[%clk 0:04:59.1]} 1... c5 {[%clk 0:04:58.5]} 2. d4 {[%clk 0:04:56.4]}
2... cxd4 {[%clk 0:04:57.1]} 3. Qxd4 {[%clk 0:04:55.2]} 3... Nc6 {[%clk
0:04:55.3]} 4. Qc3 {[%clk 0:04:53.1]} 4... Nf6 {[%clk 0:04:49]} 5. Bd3 {[%clk
0:04:50.1]} 5... d6 {[%clk 0:04:45.3]} 6. Nd2 {[%clk 0:04:47.9]} 6... g6 {[%clk
0:04:40.5]} 7. Ngf3 {[%clk 0:04:45.2]} 7... Bg7 {[%clk 0:04:39.3]} 8. e5 {[%clk
0:04:39.8]} 8... Ng4 {[%clk 0:04:29.6]} 9. O-O {[%clk 0:04:36.9]} 9... Ngxe5
{[%clk 0:04:26.6]} 10. Nxe5 {[%clk 0:04:35.3]} 10... Nxe5 {[%clk 0:04:25.1]} 11.
Nc4 {[%clk 0:04:32.5]} 11... Nf3+ {[%clk 0:04:21.5]} 12. gxf3 {[%clk 0:04:24.3]}
12... Bxc3 {[%clk 0:04:21.4]} 0-1

[Event "Live Chess"]
[Site "Chess.com"]
[Date "2023.05.20"]
[Round "-"]
[White "jusjoel"]
[Black "viktorskliarov"]
[Result "0-1"]
[WhiteElo "297"]
[BlackElo "2648"]
[TimeControl "300"]
[EndTime "9:53:38 PDT"]
[Termination "viktorskliarov won by checkmate"]

1. d4 {[%clk 0:04:37.5]} 1... Nf6 {[%clk 0:04:55.8]} 2. e3 {[%clk 0:04:32]} 2...
g6 {[%clk 0:04:54.7]} 3. Bc4 {[%clk 0:04:25.8]} 3... Bg7 {[%clk 0:04:53.6]} 4.
Qf3 {[%clk 0:04:15.4]} 4... O-O {[%clk 0:04:50.2]} 5. c3 {[%clk 0:04:05.4]} 5...
d5 {[%clk 0:04:48.1]} 6. Bb3 {[%clk 0:03:53.5]} 6... c5 {[%clk 0:04:46.5]} 7.
dxc5 {[%clk 0:03:50.7]} 7... Nbd7 {[%clk 0:04:45.1]} 8. g4 {[%clk 0:03:11.1]}
8... Ne5 {[%clk 0:04:35.5]} 9. Qh3 {[%clk 0:03:05.1]} 9... Bxg4 {[%clk
0:04:32.4]} 10. Qh4 {[%clk 0:02:58.8]} 10... Nd3+ {[%clk 0:04:17.8]} 11. Kd2
{[%clk 0:02:53.6]} 11... Nxf2 {[%clk 0:04:16.2]} 12. Qxf2 {[%clk 0:02:40.3]}
12... Ne4+ {[%clk 0:04:15.4]} 13. Ke1 {[%clk 0:02:29.2]} 13... Nxf2 {[%clk
0:04:15.3]} 14. Kxf2 {[%clk 0:02:28]} 14... e6 {[%clk 0:04:14.3]} 15. Nf3 {[%clk
0:02:11]} 15... Bxf3 {[%clk 0:04:10]} 16. Kxf3 {[%clk 0:02:05.8]} 16... Rc8
{[%clk 0:04:09.9]} 17. Rd1 {[%clk 0:02:02.4]} 17... Rxc5 {[%clk 0:04:08.2]} 18.
Bd2 {[%clk 0:01:58.1]} 18... Qh4 {[%clk 0:04:06.8]} 19. Kg2 {[%clk 0:01:49.2]}
19... Be5 {[%clk 0:04:05.3]} 20. e4 {[%clk 0:01:40.7]} 20... Qxh2+ {[%clk
0:04:02.9]} 21. Kf3 {[%clk 0:01:38.2]} 21... Qg3+ {[%clk 0:03:58.3]} 22. Ke2
{[%clk 0:01:35.1]} 22... dxe4 {[%clk 0:03:57.8]} 23. c4 {[%clk 0:01:08]} 23...
Qf3+ {[%clk 0:03:55.6]} 24. Ke1 {[%clk 0:01:05.2]} 24... Bg3# {[%clk 0:03:55.5]}
0-1

[Event "Live Chess"]
[Site "Chess.com"]
[Date "2023.05.20"]
[Round "-"]
[White "Kr1xot4_XGOD"]
[Black "toog"]
[Result "1/2-1/2"]
[WhiteElo "2200"]
[BlackElo "2629"]
[TimeControl "300"]
[EndTime "9:53:42 PDT"]
[Termination "Game drawn by agreement"]

1. e4 {[%clk 0:04:56.6]} 1... c5 {[%clk 0:04:52.9]} 2. Nf3 {[%clk 0:04:52.9]}
2... d6 {[%clk 0:04:52]} 3. d4 {[%clk 0:04:48.4]} 3... cxd4 {[%clk 0:04:51.9]}
4. Nxd4 {[%clk 0:04:45.6]} 4... Nf6 {[%clk 0:04:51.5]} 5. Bb5+ {[%clk
0:04:42.6]} 5... Bd7 {[%clk 0:04:42.6]} 6. Bxd7+ {[%clk 0:04:41.5]} 6... Nbxd7
{[%clk 0:04:36.2]} 7. O-O {[%clk 0:04:37.7]} 7... Nxe4 {[%clk 0:04:31.2]} 8. Re1
{[%clk 0:04:35.1]} 8... Nef6 {[%clk 0:04:28.9]} 9. Nc3 {[%clk 0:04:25.7]} 9...
e6 {[%clk 0:04:27.7]} 10. Ncb5 {[%clk 0:04:18.4]} 10... Be7 {[%clk 0:04:15.4]}
11. Qe2 {[%clk 0:03:48.6]} 11... a6 {[%clk 0:03:59.1]} 12. Nf5 {[%clk
0:03:34.4]} 12... O-O {[%clk 0:02:39.9]} 13. Nbxd6 {[%clk 0:03:23.4]} 13... Bxd6
{[%clk 0:02:35.5]} 14. Nxd6 {[%clk 0:03:22.6]} 14... Qc7 {[%clk 0:02:35]} 15.
Ne4 {[%clk 0:03:09.2]} 15... Nxe4 {[%clk 0:02:33]} 16. Qxe4 {[%clk 0:03:07.3]}
16... Rac8 {[%clk 0:02:32]} 17. Be3 {[%clk 0:02:34.2]} 17... Nf6 {[%clk
0:02:24.6]} 18. Qf3 {[%clk 0:02:16.6]} 18... Nd5 {[%clk 0:02:22]} 19. Rac1
{[%clk 0:02:10]} 19... Rfd8 {[%clk 0:02:18.9]} 20. Bd4 {[%clk 0:02:03.3]} 20...
Qc4 {[%clk 0:02:15]} 21. Re4 {[%clk 0:01:56.2]} 21... Qxa2 {[%clk 0:01:53.8]}
22. Rg4 {[%clk 0:01:42.3]} 22... g6 {[%clk 0:01:46.1]} 23. Rh4 {[%clk
0:01:36.3]} 23... Rxc2 {[%clk 0:01:41]} 24. Rd1 {[%clk 0:01:32.9]} 24... Rxb2
{[%clk 0:01:14.1]} 25. Rxh7 {[%clk 0:01:15.8]} 25... f6 {[%clk 0:01:03.6]} 26.
Qh3 {[%clk 0:01:06.1]} 1/2-1/2

[Event "Live Chess"]
[Site "Chess.com"]
[Date "2023.05.20"]
[Round "-"]
[White "FlyingChessKestrel13"]
[Black "MartinWalker4"]
[Result "0-1"]
[WhiteElo "2127"]
[BlackElo "2063"]
[TimeControl "300"]
[EndTime "9:53:46 PDT"]
[Termination "MartinWalker4 won by resignation"]

1. e4 {[%clk 0:04:56.5]} 1... e5 {[%clk 0:04:56.5]} 2. Nf3 {[%clk 0:04:49.8]}
2... Nc6 {[%clk 0:04:54.8]} 3. Bb5 {[%clk 0:04:48.2]} 3... a6 {[%clk 0:04:53.2]}
4. Ba4 {[%clk 0:04:46.2]} 4... Nf6 {[%clk 0:04:52]} 5. O-O {[%clk 0:04:44.7]}
5... Nxe4 {[%clk 0:04:50.7]} 6. Re1 {[%clk 0:04:43.1]} 6... Nc5 {[%clk
0:04:34.5]} 7. Bxc6 {[%clk 0:04:41.3]} 7... dxc6 {[%clk 0:04:32.5]} 8. Nxe5
{[%clk 0:04:40.5]} 8... Be7 {[%clk 0:04:31.4]} 9. d4 {[%clk 0:04:39.4]} 9... Ne6
{[%clk 0:04:29.1]} 10. c3 {[%clk 0:04:38.3]} 10... O-O {[%clk 0:04:27.9]} 11.
Nd2 {[%clk 0:04:35.6]} 11... Bf6 {[%clk 0:04:21.9]} 12. Ndf3 {[%clk 0:04:33.6]}
12... Re8 {[%clk 0:04:14.9]} 13. Qc2 {[%clk 0:04:30.3]} 13... Nf8 {[%clk
0:04:09.1]} 14. Bf4 {[%clk 0:04:22.9]} 14... Be6 {[%clk 0:04:03.3]} 15. Bg3
{[%clk 0:04:17.9]} 15... Bd5 {[%clk 0:03:59.6]} 16. Rad1 {[%clk 0:04:14.5]}
16... Ne6 {[%clk 0:03:49.6]} 17. Nd2 {[%clk 0:03:58.4]} 17... Nf8 {[%clk
0:03:03.8]} 18. Nf1 {[%clk 0:03:55.9]} 18... Bxe5 {[%clk 0:02:53.6]} 19. dxe5
{[%clk 0:03:50.1]} 19... Qe7 {[%clk 0:02:46.2]} 20. Ne3 {[%clk 0:03:47.9]} 20...
Rad8 {[%clk 0:02:42.9]} 21. f4 {[%clk 0:03:43.3]} 21... Qc5 {[%clk 0:02:36]} 22.
Kh1 {[%clk 0:03:42.1]} 22... Be6 {[%clk 0:02:14.1]} 23. f5 {[%clk 0:03:37.9]}
23... Bc8 {[%clk 0:02:10.9]} 24. Ng4 {[%clk 0:03:23.2]} 24... h5 {[%clk
0:01:53.9]} 25. Nf2 {[%clk 0:03:21.3]} 25... Rxd1 {[%clk 0:01:51.5]} 26. Rxd1
{[%clk 0:03:15.6]} 26... Qe3 {[%clk 0:01:30.5]} 27. Rf1 {[%clk 0:02:11.7]} 27...
h4 {[%clk 0:01:11.6]} 28. Nd1 {[%clk 0:02:04.2]} 28... Qg5 {[%clk 0:01:09.7]}
29. Bf4 {[%clk 0:02:02]} 29... Qxf5 {[%clk 0:01:08.2]} 30. Qb3 {[%clk
0:01:52.9]} 30... Ng6 {[%clk 0:01:02.4]} 31. Ne3 {[%clk 0:01:51.3]} 31... Qe6
{[%clk 0:01:01.1]} 32. c4 {[%clk 0:01:24.3]} 32... Nxf4 {[%clk 0:00:58]} 33.
Rxf4 {[%clk 0:01:21.8]} 33... Qxe5 {[%clk 0:00:57]} 34. Rf3 {[%clk 0:01:15.4]}
34... Bg4 {[%clk 0:00:54.6]} 0-1

[Event "Live Chess"]
[Site "Chess.com"]
[Date "2023.05.20"]
[Round "-"]
[White "Ferrarifan27"]
[Black "OSmith06"]
[Result "1-0"]
[WhiteElo "2082"]
[BlackElo "1725"]
[TimeControl "300"]
[EndTime "9:53:54 PDT"]
[Termination "Ferrarifan27 won by resignation"]

1. e4 {[%clk 0:04:59]} 1... c6 {[%clk 0:04:58.9]} 2. d4 {[%clk 0:04:57.8]} 2...
d5 {[%clk 0:04:58.8]} 3. e5 {[%clk 0:04:57.2]} 3... c5 {[%clk 0:04:56.8]} 4.
dxc5 {[%clk 0:04:55.8]} 4... Nc6 {[%clk 0:04:55.4]} 5. a3 {[%clk 0:04:51.8]}
5... Nxe5 {[%clk 0:04:52]} 6. b4 {[%clk 0:04:51.1]} 6... Bf5 {[%clk 0:04:47.7]}
7. Bb2 {[%clk 0:04:49.4]} 7... Nc6 {[%clk 0:04:41.7]} 8. Nf3 {[%clk 0:04:40.3]}
8... e6 {[%clk 0:04:38.7]} 9. Bd3 {[%clk 0:04:38.5]} 9... Bxd3 {[%clk
0:04:36.8]} 10. cxd3 {[%clk 0:04:38.4]} 10... Nf6 {[%clk 0:04:32.7]} 11. O-O
{[%clk 0:04:36.3]} 11... Be7 {[%clk 0:04:30.4]} 12. Re1 {[%clk 0:04:35]} 12...
O-O {[%clk 0:04:28.8]} 13. Nbd2 {[%clk 0:04:32]} 13... a5 {[%clk 0:04:25.1]} 14.
b5 {[%clk 0:04:29.1]} 14... Na7 {[%clk 0:04:23.8]} 15. b6 {[%clk 0:04:26.9]}
15... Nc6 {[%clk 0:04:20.2]} 16. d4 {[%clk 0:04:25.6]} 16... Ne4 {[%clk
0:04:15.6]} 17. Nxe4 {[%clk 0:04:23.7]} 17... dxe4 {[%clk 0:04:15.5]} 18. Rxe4
{[%clk 0:04:22.6]} 18... Qd7 {[%clk 0:04:13.4]} 19. Qc2 {[%clk 0:04:16.8]} 19...
Rfd8 {[%clk 0:04:11.8]} 20. Rd1 {[%clk 0:04:14.8]} 20... Bxc5 {[%clk 0:04:08.4]}
21. Qxc5 {[%clk 0:04:13.4]} 21... Rac8 {[%clk 0:04:04.1]} 22. Qg5 {[%clk
0:04:08.8]} 22... Nxd4 {[%clk 0:03:59.2]} 23. Rexd4 {[%clk 0:04:03.7]} 23...
Qxd4 {[%clk 0:03:55.3]} 24. Bxd4 {[%clk 0:03:57.8]} 24... Rxd4 {[%clk
0:03:53.6]} 25. Rxd4 {[%clk 0:03:52.9]} 1-0

[Event "Live Chess"]
[Site "Chess.com"]
[Date "2023.05.20"]
[Round "-"]
[White "daveeeeR"]
[Black "peter-785"]
[Result "1-0"]
[WhiteElo "1261"]
[BlackElo "1155"]
[TimeControl "300"]
[EndTime "9:54:01 PDT"]
[Termination "daveeeeR won on time"]

1. d4 {[%clk 0:04:59.2]} 1... d5 {[%clk 0:04:56.4]} 2. Bf4 {[%clk 0:04:58.5]}
2... c6 {[%clk 0:04:55.4]} 3. Nf3 {[%clk 0:04:58.4]} 3... Nf6 {[%clk 0:04:54.1]}
4. e3 {[%clk 0:04:57.5]} 4... e6 {[%clk 0:04:52.9]} 5. c3 {[%clk 0:04:56.5]}
5... Be7 {[%clk 0:04:52.3]} 6. Bd3 {[%clk 0:04:55.1]} 6... O-O {[%clk
0:04:49.8]} 7. Nbd2 {[%clk 0:04:53.7]} 7... Nbd7 {[%clk 0:04:47.4]} 8. h4 {[%clk
0:04:51.9]} 8... h5 {[%clk 0:04:45.9]} 9. Be5 {[%clk 0:04:47.7]} 9... Nxe5
{[%clk 0:04:42.5]} 10. dxe5 {[%clk 0:04:46.1]} 10... Nd7 {[%clk 0:04:41.8]} 11.
Ng5 {[%clk 0:04:41.3]} 11... g6 {[%clk 0:04:32.1]} 12. Qe2 {[%clk 0:04:32.7]}
12... Nxe5 {[%clk 0:04:29]} 13. O-O-O {[%clk 0:04:27.9]} 13... Nxd3+ {[%clk
0:04:26.8]} 14. Qxd3 {[%clk 0:04:25.6]} 14... Qa5 {[%clk 0:04:16]} 15. Kb1
{[%clk 0:04:23.2]} 15... Qb6 {[%clk 0:04:06.4]} 16. Qe2 {[%clk 0:04:15]} 16...
a5 {[%clk 0:03:56.4]} 17. g4 {[%clk 0:04:09.8]} 17... Ba3 {[%clk 0:03:19.2]} 18.
b3 {[%clk 0:04:03.9]} 18... a4 {[%clk 0:03:15.1]} 19. gxh5 {[%clk 0:03:59.9]}
19... Qc5 {[%clk 0:03:02.3]} 20. Qd3 {[%clk 0:03:46]} 20... f5 {[%clk
0:02:17.5]} 21. hxg6 {[%clk 0:03:38.5]} 21... Rf6 {[%clk 0:02:10.5]} 22. h5
{[%clk 0:03:31.7]} 22... axb3 {[%clk 0:02:06.5]} 23. Nxb3 {[%clk 0:03:28.2]}
23... Qc4 {[%clk 0:01:59.9]} 24. Nf3 {[%clk 0:03:11]} 24... Qg4 {[%clk
0:01:35.1]} 25. Ne5 {[%clk 0:02:31.5]} 25... Qe4 {[%clk 0:01:20.6]} 26. Rdg1
{[%clk 0:01:55.9]} 26... Qxe5 {[%clk 0:01:04.8]} 27. h6 {[%clk 0:01:50.1]} 27...
Rxg6 {[%clk 0:00:31.3]} 28. Rxg6+ {[%clk 0:01:46.2]} 28... Kh7 {[%clk
0:00:30.4]} 29. Rg7+ {[%clk 0:01:43.8]} 29... Kh8 {[%clk 0:00:28.5]} 30. Rgg1
{[%clk 0:01:30.2]} 30... Bd6 {[%clk 0:00:24.5]} 31. Nd2 {[%clk 0:01:06.9]} 31...
d4 {[%clk 0:00:11.6]} 32. Qxd4 {[%clk 0:00:54.8]} 32... Qxd4 {[%clk 0:00:06.7]}
33. exd4 {[%clk 0:00:52.2]} 33... Bf8 {[%clk 0:00:01.9]} 34. h7 {[%clk
0:00:50.8]} 1-0

[Event "Live Chess"]
[Site "Chess.com"]
[Date "2023.05.20"]
[Round "-"]
[White "LaupMiths"]
[Black "onemoretime1975"]
[Result "1/2-1/2"]
[WhiteElo "1828"]
[BlackElo "1930"]
[TimeControl "300"]
[EndTime "9:54:03 PDT"]
[Termination "Game drawn by repetition"]

1. c4 {[%clk 0:04:56.4]} 1... e6 {[%clk 0:04:57.2]} 2. Nf3 {[%clk 0:04:53.8]}
2... d5 {[%clk 0:04:55.9]} 3. d4 {[%clk 0:04:51.2]} 3... Nf6 {[%clk 0:04:53.9]}
4. Nc3 {[%clk 0:04:48.2]} 4... c6 {[%clk 0:04:51.7]} 5. e3 {[%clk 0:04:46.2]}
5... Be7 {[%clk 0:04:50]} 6. Be2 {[%clk 0:04:44.1]} 6... O-O {[%clk 0:04:48]} 7.
O-O {[%clk 0:04:42.7]} 7... Nbd7 {[%clk 0:04:46.8]} 8. b3 {[%clk 0:04:40.8]}
8... b6 {[%clk 0:04:43.5]} 9. Bb2 {[%clk 0:04:39.5]} 9... Bb7 {[%clk 0:04:41.6]}
10. Rc1 {[%clk 0:04:37.7]} 10... Rc8 {[%clk 0:04:39.8]} 11. Qc2 {[%clk
0:04:36.2]} 11... c5 {[%clk 0:04:35.4]} 12. Qb1 {[%clk 0:04:34.2]} 12... cxd4
{[%clk 0:04:26.2]} 13. exd4 {[%clk 0:04:32.7]} 13... dxc4 {[%clk 0:04:22.2]} 14.
bxc4 {[%clk 0:04:29.1]} 14... Ba6 {[%clk 0:04:14.6]} 15. Nb5 {[%clk 0:04:23.7]}
15... Bxb5 {[%clk 0:04:11.7]} 16. cxb5 {[%clk 0:04:19.9]} 16... Nd5 {[%clk
0:04:10.5]} 17. Bd3 {[%clk 0:04:12.3]} 17... g6 {[%clk 0:04:07.5]} 18. Ne5
{[%clk 0:04:09.1]} 18... Nxe5 {[%clk 0:04:04]} 19. dxe5 {[%clk 0:04:04.3]} 19...
Qd7 {[%clk 0:03:20.1]} 20. Rfd1 {[%clk 0:03:59.2]} 20... Bg5 {[%clk 0:03:13.6]}
21. Rc4 {[%clk 0:03:53.2]} 21... Qb7 {[%clk 0:03:02.3]} 22. Rg4 {[%clk
0:03:45.7]} 22... Bh6 {[%clk 0:02:54.9]} 23. h4 {[%clk 0:03:43.1]} 23... Bg7
{[%clk 0:02:29.6]} 24. h5 {[%clk 0:03:41.5]} 24... Rfd8 {[%clk 0:02:25.3]} 25.
hxg6 {[%clk 0:03:30.6]} 25... hxg6 {[%clk 0:02:21.9]} 26. a4 {[%clk 0:02:52.8]}
26... Nc3 {[%clk 0:02:14.3]} 27. Bxc3 {[%clk 0:02:49.5]} 27... Rxc3 {[%clk
0:02:10.3]} 28. Bxg6 {[%clk 0:02:43]} 28... Rxd1+ {[%clk 0:02:05.3]} 29. Qxd1
{[%clk 0:02:42.4]} 29... Qc7 {[%clk 0:01:51.4]} 30. Bxf7+ {[%clk 0:02:37.1]}
30... Qxf7 {[%clk 0:01:45.1]} 31. Qd8+ {[%clk 0:02:33.8]} 31... Qf8 {[%clk
0:01:43.3]} 32. Qd7 {[%clk 0:02:26.5]} 32... Qf7 {[%clk 0:01:34.1]} 33. Qd8+
{[%clk 0:02:20]} 33... Qf8 {[%clk 0:01:31.8]} 34. Qd7 {[%clk 0:02:18.5]} 34...
Qf7 {[%clk 0:01:25.7]} 35. Qd8+ {[%clk 0:02:17]} 1/2-1/2